bitfinex/quotes_SOLUSD_20250416
["timestamp","ask_amount","ask_price","bid_price","bid_amount"]
[1744836963729,82.8,131.7,131.66,38.63924461]
[1744836964035,121.43924461,131.7,131.65,38.63924461]
[1744836964626,129.03252839,131.7,131.65,38.63924461]
[1744836965135,82.94216157,131.69,131.61,2.601086]
[1744836965440,38.63924461,131.67,131.62,38.63924461]
[1744836965937,38.63924461,131.67,131.61,2.601086]
[1744836966136,38.63924461,131.64,131.61,2.601086]
[1744836966438,100.14,131.66,131.63,38.63924461]
[1744836966828,121.43924461,131.65,131.61,2.601086]
[1744836967138,38.63924461,131.64,131.61,2.601086]
[1744836967329,82.8,131.65,131.61,41.24033061]
[1744836967641,38.63924461,131.64,131.61,2.601086]
[1744836969342,129.03527895,131.65,131.61,2.601086]
[1744836969843,38.63924461,131.64,131.61,2.601086]
[1744836970339,38.63924461,131.62,131.61,2.601086]
[1744836971043,38.63924461,131.63,131.61,2.601086]
[1744836972429,38.63924461,131.62,131.61,2.601086]
[1744836973046,65.31300771,131.62,131.61,2.601086]
[1744836973926,69.19792984,131.62,131.61,2.601086]
[1744836975046,47.89868523,131.62,131.61,2.601086]
[1744836975348,86.53792984,131.62,131.61,2.601086]
[1744836975536,56.12140618,131.62,131.61,2.601086]
[1744836976233,82.65300771,131.62,131.61,2.601086]
[1744836976428,112.42476027,131.62,131.61,2.601086]
[1744836976631,151.06400488,131.62,131.61,2.601086]
[1744836977555,112.42476027,131.62,131.61,2.601086]
[1744836978051,151.06400488,131.62,131.61,2.601086]
[1744836979453,133.72400488,131.62,131.61,2.601086]
[1744836979634,151.06400488,131.62,131.61,2.601086]
[1744836980456,112.42476027,131.62,131.61,2.601086]
[1744836980843,151.06400488,131.62,131.61,2.601086]
[1744836981156,170.05807872,131.62,131.56,0.03]
[1744836981352,38.63924461,131.57,131.56,0.03]
[1744836981657,55.97924461,131.57,131.56,0.03]
[1744836982750,55.97924461,131.57,131.56,4.16423]
[1744836983254,49.35078192,131.57,131.56,4.16423]
[1744836983434,17.48216157,131.57,131.56,4.16423]
[1744836983633,49.35078192,131.57,131.56,4.16423]
[1744836984136,68.28475392,131.57,131.56,4.16423]
[1744836984442,41.75026509,131.57,131.56,4.16423]
[1744836984640,17.34,131.57,131.56,4.16423]
[1744836984842,41.60810352,131.57,131.56,4.16423]
[1744836985041,41.75026509,131.57,131.56,4.16423]
[1744836985257,68.28475392,131.57,131.56,4.16423]
[1744836987161,17.34,131.57,131.56,4.16423]
[1744836987745,41.60810352,131.57,131.56,4.16423]
[1744836988253,60.68423709,131.57,131.56,4.16423]
[1744836989360,101.87613357,131.56,131.48,0.03]
[1744836989564,24.41026509,131.53,131.48,24.29810352]
[1744836989735,0.14216157,131.56,131.51,24.26810352]
[1744836990047,24.41026509,131.54,131.49,24.26810352]
[1744836990757,24.26810352,131.53,131.49,24.26810352]
[1744836990963,24.26810352,131.53,131.48,7.63548871]
[1744836991440,24.26810352,131.53,131.49,24.26810352]
[1744836991853,24.26810352,131.52,131.48,0.03]
[1744836992167,0.14216157,131.54,131.5,0.03]
[1744836992337,24.26810352,131.53,131.5,0.03]
[1744836994338,24.26810352,131.52,131.5,0.03]
[1744836994860,24.69458823,131.51,131.5,0.03]
[1744836995048,43.34423709,131.51,131.5,0.03]
[1744836995445,69.34423709,131.51,131.5,0.03]
[1744836995838,45.07613357,131.51,131.5,0.03]
[1744836996067,69.34423709,131.51,131.5,0.03]
[1744836996269,8.03046919,131.51,131.5,0.03]
[1744836996447,50.94822157,131.51,131.5,0.03]
[1744836997468,32.29857271,131.51,131.5,0.03]
[1744836998063,24.41026509,131.51,131.5,0.03]
[1744836998441,24.26810352,131.51,131.5,0.03]
[1744836998641,17.34,131.52,131.5,0.03]
[1744836998944,24.26810352,131.51,131.5,0.03]
[1744836999661,41.60810352,131.52,131.5,0.03]
[1744837000242,17.34,131.52,131.5,0.03]
[1744837000545,24.26810352,131.51,131.5,0.03]
[1744837000745,41.60810352,131.52,131.5,0.03]
[1744837002141,24.26810352,131.51,131.5,0.03]
[1744837002443,41.60810352,131.52,131.5,0.03]
[1744837002764,24.26810352,131.51,131.48,0.03]
[1744837002968,24.26810352,131.49,131.48,0.03]
[1744837004674,82.8,131.51,131.48,0.03]
[1744837004966,24.26810352,131.5,131.48,0.03]
[1744837005157,107.06810352,131.51,131.48,0.03]
[1744837005357,82.8,131.51,131.48,0.03]
[1744837005570,17.34,131.52,131.48,24.29810352]
[1744837005773,17.34,131.52,131.49,7.60514107]
[1744837005943,24.26810352,131.54,131.49,31.87324459]
[1744837006148,24.26810352,131.55,131.5,24.26810352]
[1744837006552,24.26810352,131.54,131.49,31.87324459]
[1744837006754,24.26810352,131.53,131.49,7.60514107]
[1744837006950,24.26810352,131.54,131.49,24.26810352]
[1744837008148,24.26810352,131.54,131.5,7.60456273]
[1744837010055,111.70705658,131.6,131.53,24.26810352]
[1744837010372,135.9751601,131.6,131.55,24.26810352]
[1744837011343,17.403,131.61,131.57,24.26810352]
[1744837011873,0.063,131.61,131.58,7.5999392]
[1744837012277,0.063,131.61,131.58,31.86804272]
[1744837012446,0.063,131.61,131.59,24.26810352]
[1744837012975,0.063,131.61,131.6,24.26810352]
[1744837013872,17.34,131.69,131.61,26.59372387]
[1744837014064,24.26810352,131.68,131.64,24.26810352]
[1744837014377,17.34,131.69,131.64,24.26810352]
[1744837014560,24.26810352,131.65,131.59,7.59936165]
[1744837014874,24.26810352,131.65,131.6,24.26810352]
[1744837015076,24.26810352,131.64,131.6,24.26810352]
[1744837015380,24.26810352,131.65,131.61,24.26810352]
[1744837015582,24.26810352,131.65,131.61,31.86606312]
[1744837016282,24.26810352,131.65,131.61,7.5979596]
[1744837016876,24.26810352,131.66,131.61,31.86606312]
[1744837017082,24.26810352,131.65,131.61,7.5979596]
[1744837017380,24.26810352,131.62,131.58,7.5999392]
[1744837018374,24.26810352,131.62,131.58,31.86804272]
[1744837019184,82.8,131.64,131.58,26.5997872]
[1744837019378,24.26810352,131.62,131.58,31.86804272]
[1744837020085,24.26810352,131.62,131.58,7.5999392]
[1744837020285,24.26810352,131.6,131.57,7.60036484]
[1744837020460,107.06810352,131.62,131.57,31.86846836]
[1744837020660,82.8,131.62,131.58,24.26810352]
[1744837020957,107.06810352,131.62,131.58,24.26810352]
[1744837021283,107.06810352,131.62,131.59,7.59936165]
[1744837021800,0.063,131.67,131.61,24.26810352]
[1744837021978,24.26810352,131.65,131.61,24.26810352]
[1744837023360,82.863,131.67,131.62,7.59762953]
[1744837023760,24.26810352,131.65,131.62,7.59762953]
[1744837023971,24.26810352,131.66,131.62,31.86573305]
[1744837024178,107.13110352,131.67,131.63,24.26810352]
[1744837024484,0.063,131.67,131.63,24.26810352]
[1744837024685,0.063,131.67,131.64,24.26810352]
[1744837024883,0.063,131.67,131.65,24.26810352]
[1744837025082,0.063,131.67,131.66,24.26810352]
[1744837025270,0.063,131.67,131.66,30.47960352]
[1744837025271,1e-08,131.67,131.66,30.47960352]
[1744837025471,1e-08,131.67,131.66,38.0749248]
[1744837026083,1e-08,131.67,131.66,88.34302832]
[1744837026277,82.8,131.74,131.7,24.26810352]
[1744837026478,82.8,131.74,131.71,24.26810352]
[1744837026667,0.063,131.75,131.71,24.26810352]
[1744837027577,0.063,131.75,131.72,7.59186152]
[1744837027967,0.063,131.75,131.72,31.85996504]
[1744837028475,24.26810352,131.74,131.67,20.49891575]
[1744837028666,24.26810352,131.71,131.67,44.76701927]
[1744837029068,82.8,131.74,131.69,24.26810352]
[1744837029267,24.26810352,131.73,131.69,24.26810352]
[1744837029977,24.26810352,131.73,131.7,7.59301442]
[1744837031288,24.26810352,131.71,131.69,7.59337606]
[1744837031586,24.26810352,131.7,131.65,43.25643204]
[1744837031966,24.26810352,131.7,131.66,31.8634248]
[1744837032580,82.8,131.72,131.68,24.26810352]
[1744837032774,82.8,131.72,131.67,24.26810352]
[1744837032972,82.8,131.72,131.71,24.26810352]
[1744837033187,0.063,131.75,131.71,24.26810352]
[1744837033394,0.063,131.75,131.72,24.26810352]
[1744837034177,0.063,131.75,131.73,7.5912852]
[1744837034887,107.06810352,131.74,131.67,37.86820853]
[1744837035091,24.26810352,131.73,131.68,24.26810352]
[1744837035793,24.26810352,131.72,131.68,24.26810352]
[1744837035993,24.26810352,131.72,131.64,17.3]
[1744837035994,24.26810352,131.69,131.65,18.98965342]
[1744837036173,24.26810352,131.69,131.65,50.85365515]
[1744837036599,24.26810352,131.69,131.65,31.86400173]
[1744837037591,24.26810352,131.69,131.65,7.59589821]
[1744837037592,24.26810352,131.68,131.65,7.59589821]
[1744837037892,82.8,131.69,131.63,7.59697297]
[1744837037893,24.26810352,131.66,131.63,7.59697297]
[1744837038096,82.8,131.68,131.63,31.86507649]
[1744837038402,107.06810352,131.68,131.64,24.26810352]
[1744837038703,107.06810352,131.68,131.63,31.86507649]
[1744837038904,107.06810352,131.68,131.63,50.85770734]
[1744837039907,82.8,131.68,131.65,7.59589821]
[1744837040211,124.38810352,131.71,131.66,24.26810352]
[1744837040507,82.863,131.74,131.7,24.26810352]
[1744837040704,0.063,131.74,131.73,24.26810352]
[1744837041888,0.063,131.74,131.71,24.26810352]
[1744837042209,0.063,131.74,131.72,7.59186152]
[1744837043181,0.063,131.74,131.71,46.3107336]
[1744837044481,0.063,131.74,131.7,38.71844674]
[1744837044680,38.71844674,131.73,131.66,20.53517579]
[1744837044900,82.8,131.72,131.68,38.71844674]
[1744837045385,82.8,131.72,131.69,38.71844674]
[1744837045582,38.71844674,131.73,131.69,38.71844674]
[1744837046191,38.71844674,131.71,131.67,38.71844674]
[1744837046388,38.71844674,131.71,131.68,7.59414878]
[1744837049909,38.71844674,131.69,131.67,7.59456523]
[1744837050077,38.71844674,131.69,131.63,17.3]
[1744837050078,82.8,131.71,131.64,38.71844674]
[1744837050277,38.71844674,131.68,131.64,38.71844674]
[1744837051006,82.8,131.71,131.64,46.31492197]
[1744837051211,38.71844674,131.69,131.64,46.31492197]
[1744837051706,38.71844674,131.69,131.64,65.30611005]
[1744837052007,38.71844674,131.68,131.64,65.30611005]
[1744837052508,38.71844674,131.66,131.62,7.59762953]
[1744837052684,38.71844674,131.64,131.62,7.59762953]
[1744837052884,82.8,131.68,131.62,7.59762953]
[1744837052885,38.71844674,131.66,131.62,7.59762953]
[1744837053504,38.71844674,131.65,131.62,7.59762953]
[1744837057701,38.71844674,131.64,131.61,7.62807651]
[1744837058503,38.71844674,131.65,131.61,46.34652325]
[1744837058908,38.71844674,131.65,131.61,7.62807651]
[1744837059912,38.71844674,131.65,131.61,38.74844674]
[1744837060611,38.71844674,131.64,131.61,0.03]
[1744837060808,38.71844674,131.62,131.61,0.03]
[1744837061008,39.14493145,131.62,131.61,0.03]
[1744837061411,61.94964886,131.65,131.61,0.03]
[1744837061626,38.71844674,131.64,131.61,0.03]
[1744837061796,82.8,131.64,131.61,0.03]
[1744837062109,38.71844674,131.64,131.61,0.03]
[1744837063312,56.01844674,131.65,131.61,0.03]
[1744837064085,56.01844674,131.65,131.61,38.74844674]
[1744837064488,56.01844674,131.65,131.62,7.59762953]
[1744837065105,56.01844674,131.65,131.61,7.62796637]
[1744837065307,0.14216157,131.67,131.62,24.23775402]
[1744837065515,82.8,131.64,131.62,24.23775402]
[1744837065724,82.8,131.64,131.61,31.86572039]
[1744837066023,82.8,131.64,131.61,31.86580381]
[1744837066322,82.8,131.64,131.62,24.23775402]
[1744837066497,82.8,131.64,131.61,31.86580381]
[1744837066892,82.8,131.64,131.61,7.62820277]
[1744837068439,82.8,131.64,131.61,31.86595679]
[1744837068721,79.32090513,131.64,131.61,31.86595679]
[1744837070920,79.32090513,131.64,131.61,7.62820277]
[1744837071224,103.55865915,131.64,131.61,7.62820277]
[1744837072027,103.55865915,131.64,131.61,0.03]
[1744837072699,79.32090513,131.64,131.61,0.03]
[1744837073226,79.32090513,131.64,131.62,24.23775402]
[1744837073604,79.32090513,131.64,131.61,24.26775402]
[1744837074529,79.32090513,131.64,131.61,31.86554422]
[1744837075419,79.32090513,131.64,131.62,24.23775402]
[1744837075928,79.32090513,131.64,131.62,31.83513407]
[1744837076129,79.32090513,131.64,131.62,7.59738005]
[1744837076711,79.32090513,131.64,131.61,31.86569033]
[1744837078029,103.55865915,131.64,131.61,0.03]
[1744837078212,79.32090513,131.64,131.61,31.86584325]
[1744837079297,79.32090513,131.64,131.62,24.23775402]
[1744837079898,79.32090513,131.64,131.63,24.23775402]
[1744837080101,79.32090513,131.64,131.61,26.62360628]
[1744837080102,24.23775402,131.65,131.61,7.62808923]
[1744837080306,24.23775402,131.66,131.61,31.86584325]
[1744837080626,79.32090513,131.67,131.63,24.23775402]
[1744837081305,79.32090513,131.67,131.64,7.59647523]
[1744837081506,30.69785402,131.68,131.64,7.59647523]
[1744837081931,24.23775402,131.67,131.63,7.59683098]
[1744837083029,47.99785402,131.68,131.63,31.834585]
[1744837083628,47.99785402,131.68,131.64,24.23775402]
[1744837083629,17.3,131.68,131.64,24.23775402]
[1744837084234,17.3,131.68,131.65,24.23775402]
[1744837085134,17.3,131.68,131.66,24.23775402]
[1744837085439,79.32090513,131.69,131.63,26.58946183]
[1744837085440,103.55865915,131.69,131.65,24.23775402]
[1744837085911,103.55865915,131.69,131.66,7.59532128]
[1744837086428,79.32090513,131.69,131.66,7.59532128]
[1744837086635,24.23775402,131.67,131.65,7.59580926]
[1744837086938,24.23775402,131.67,131.64,7.59623252]
[1744837087302,24.23775402,131.68,131.64,26.5874206]
[1744837087507,103.55865915,131.69,131.64,50.82517462]
[1744837089009,103.55865915,131.69,131.65,24.23775402]
[1744837089241,103.55865915,131.69,131.64,50.82517462]
[1744837089535,24.23775402,131.65,131.62,7.59762953]
[1744837089749,24.23775402,131.63,131.61,7.62795973]
[1744837090251,79.32090513,131.65,131.61,7.62795973]
[1744837090411,103.55865915,131.65,131.61,31.86571375]
[1744837090615,79.32090513,131.65,131.62,24.23775402]
[1744837090836,79.32090513,131.65,131.64,24.23775402]
[1744837091057,103.55865915,131.69,131.65,7.59589821]
[1744837091739,24.23775402,131.68,131.65,7.59589821]
[1744837091917,24.23775402,131.68,131.64,7.59622959]
[1744837092119,24.23775402,131.67,131.64,7.59622959]
[1744837095644,24.23775402,131.68,131.64,24.23775402]
[1744837097545,24.23775402,131.67,131.63,31.83480636]
[1744837098257,24.23775402,131.67,131.61,0.03]
[1744837098258,24.23775402,131.64,131.61,0.03]
[1744837098484,24.66423873,131.62,131.61,0.03]
[1744837099862,32.26186826,131.62,131.61,0.03]
[1744837100933,24.66423873,131.62,131.61,0.03]
[1744837101140,24.23775402,131.62,131.61,0.03]
[1744837102461,82.8,131.64,131.61,24.26775402]
[1744837102761,1.0,131.72,131.63,24.23775402]
[1744837102762,82.8,131.7,131.63,24.23775402]
[1744837103060,114.6310009,131.7,131.65,24.23775402]
[1744837104457,24.23775402,131.67,131.62,24.23775402]
[1744837104754,24.23775402,131.66,131.61,24.26775402]
[1744837105147,46.36784963,131.66,131.61,46.40042986]
[1744837105347,46.36747736,131.67,131.62,38.77247125]
[1744837105840,38.77247125,131.65,131.61,38.80247125]
[1744837106359,38.77247125,131.66,131.61,46.4006561]
[1744837107258,46.36809539,131.66,131.61,46.4006561]
[1744837107765,38.77247125,131.65,131.61,46.4006561]
[1744837108767,129.16809539,131.66,131.61,46.4006561]
[1744837108966,121.57247125,131.66,131.61,46.4006561]
[1744837109167,82.8,131.66,131.62,38.77247125]
[1744837110149,82.8,131.66,131.62,46.36980783]
[1744837110463,129.16793724,131.66,131.61,46.40043637]
[1744837110874,129.16793724,131.66,131.61,38.80247125]
[1744837111169,38.77247125,131.65,131.61,38.80247125]
[1744837111573,38.77247125,131.65,131.61,46.40060666]
[1744837111868,129.16793724,131.66,131.61,46.40060666]
[1744837112077,129.16793724,131.66,131.62,38.77247125]
[1744837112239,17.28,131.67,131.63,38.77247125]
[1744837112442,82.8,131.68,131.62,26.59165203]
[1744837112443,82.8,131.68,131.64,38.77247125]
[1744837112670,121.57247125,131.68,131.63,38.77247125]
[1744837113470,129.16667146,131.68,131.63,46.3691929]
[1744837114078,121.57247125,131.68,131.63,46.3691929]
[1744837114674,129.16678093,131.68,131.63,46.3691929]
[1744837114874,38.77247125,131.67,131.63,46.3691929]
[1744837115168,129.16678093,131.68,131.63,46.3691929]
[1744837115474,38.77247125,131.67,131.62,46.36971966]
[1744837115650,38.77247125,131.66,131.62,7.59724841]
[1744837116161,38.77247125,131.66,131.61,46.40040999]
[1744837116354,38.77247125,131.65,131.61,7.62793874]
[1744837116543,38.77247125,131.67,131.62,38.77247125]
[1744837116743,39.19895596,131.66,131.61,46.40040999]
[1744837116944,38.77247125,131.65,131.61,7.62793874]
[1744837117194,121.57247125,131.65,131.61,7.62793874]
[1744837117973,82.8,131.65,131.61,46.40040999]
[1744837118149,82.8,131.65,131.62,38.77247125]
[1744837119748,82.8,131.65,131.63,7.59705234]
[1744837120648,82.8,131.65,131.64,38.77247125]
[1744837121771,82.8,131.65,131.64,46.36894648]
[1744837123069,38.77247125,131.68,131.64,46.36894648]
[1744837124769,38.77247125,131.67,131.63,7.59685498]
[1744837124967,38.77247125,131.65,131.61,0.03]
[1744837125276,38.77247125,131.65,131.61,30.03]
[1744837125479,121.57247125,131.66,131.61,68.80247125]
[1744837126282,121.57247125,131.66,131.61,76.4004981]
[1744837126489,82.8,131.66,131.62,38.77247125]
[1744837126783,82.8,131.66,131.64,38.77247125]
[1744837127161,82.8,131.66,131.64,24.22471382]
[1744837127370,82.8,131.66,131.63,24.22471382]
[1744837128387,82.8,131.66,131.64,7.59647523]
[1744837128865,82.8,131.66,131.64,31.82118905]
[1744837130156,82.8,131.66,131.64,7.59647523]
[1744837130685,82.8,131.68,131.64,7.59647523]
[1744837130857,24.22471382,131.67,131.63,7.59678624]
[1744837131057,114.61904451,131.68,131.63,31.82150006]
[1744837131481,24.22471382,131.67,131.63,31.82150006]
[1744837131675,90.39433069,131.68,131.63,31.82150006]
[1744837131878,90.39433069,131.68,131.63,7.59678624]
[1744837132196,24.22471382,131.67,131.63,7.59678624]
[1744837132354,31.81952004,131.67,131.62,7.59736902]
[1744837132687,24.22471382,131.63,131.61,0.03]
[1744837132886,107.02471382,131.62,131.61,30.03]
[1744837133383,24.65119853,131.62,131.61,30.03]
[1744837133587,24.65119853,131.62,131.61,0.03]
[1744837133754,24.22471382,131.62,131.61,0.03]
[1744837134881,43.30084739,131.62,131.61,0.03]
[1744837135585,50.89847692,131.62,131.61,0.03]
[1744837138395,24.22471382,131.62,131.61,0.03]
[1744837138696,24.22471382,131.63,131.61,0.03]
[1744837139393,24.99866655,131.64,131.61,0.03]
[1744837139394,24.22471382,131.62,131.61,0.03]
[1744837140298,43.30084739,131.62,131.61,0.03]
[1744837141196,50.89847692,131.62,131.61,0.03]
[1744837141391,32.24882806,131.62,131.61,0.03]
[1744837143995,50.89847692,131.62,131.61,0.03]
[1744837146705,101.12319074,131.62,131.61,0.03]
[1744837147086,76.89847692,131.62,131.61,0.03]
[1744837148396,94.15847692,131.62,131.61,0.03]
[1744837148906,19.07613357,131.61,131.58,0.03]
[1744837149113,24.65119853,131.59,131.58,0.03]
[1744837149297,43.30084739,131.59,131.58,0.03]
[1744837149602,0.42648471,131.58,131.54,7.60219377]
[1744837150000,24.22471382,131.57,131.54,7.60219377]
[1744837150583,107.02471382,131.57,131.54,7.60219377]
[1744837153210,107.02471382,131.57,131.53,24.22471382]
[1744837153211,98.32939544,131.57,131.53,15.52939544]
[1744837153411,82.8,131.61,131.55,15.52939544]
[1744837153709,82.8,131.64,131.6,15.52939544]
[1744837153887,82.8,131.63,131.6,15.52939544]
[1744837154485,18.64964886,131.62,131.53,95.15548176]
[1744837154700,18.64964886,131.62,131.53,23.12329544]
[1744837154701,15.52939544,131.57,131.53,23.12329544]
[1744837154913,15.52939544,131.57,131.53,17.08539544]
[1744837155210,15.52939544,131.56,131.53,1.556]
[1744837155402,15.52939544,131.56,131.52,23.13280176]
[1744837155403,15.52939544,131.56,131.51,23.13328319]
[1744837155587,15.52939544,131.55,131.51,23.13328319]
[1744837157513,15.52939544,131.56,131.51,23.13328319]
[1744837158287,15.52939544,131.56,131.52,15.52939544]
[1744837159024,15.52939544,131.56,131.52,23.1322413]
[1744837160722,82.8,131.63,131.56,1.5875]
[1744837161009,82.8,131.63,131.6,23.12807267]
[1744837161214,82.8,131.63,131.61,15.52939544]
[1744837161394,115.60939544,131.67,131.62,15.52939544]
[1744837161595,100.08,131.67,131.62,15.52939544]
[1744837161797,115.60939544,131.67,131.62,15.52939544]
[1744837162102,15.52939544,131.66,131.61,15.52939544]
[1744837163017,115.60939544,131.67,131.62,23.12665304]
[1744837163203,124.31173394,131.67,131.62,31.82899154]
[1744837163702,24.23173394,131.66,131.62,7.5972576]
[1744837163907,24.23173394,131.64,131.61,7.59811139]
[1744837164111,24.23173394,131.65,131.61,7.59811139]
[1744837165728,24.23173394,131.65,131.61,31.82984533]
[1744837166723,24.65821865,131.66,131.61,31.82984533]
[1744837167028,82.8,131.65,131.61,31.82984533]
[1744837168025,107.03173394,131.65,131.61,31.82984533]
[1744837169217,107.03173394,131.65,131.61,7.59811139]
[1744837169526,24.23173394,131.63,131.58,31.83167314]
[1744837169830,82.8,131.62,131.6,24.23173394]
[1744837170117,82.8,131.62,131.61,24.23173394]
[1744837170422,82.8,131.64,131.6,24.23173394]
[1744837170623,107.03173394,131.64,131.6,24.23173394]
[1744837171328,82.8,131.64,131.61,7.59820682]
[1744837172012,107.03173394,131.64,131.6,31.83028633]
[1744837173104,82.8,131.64,131.6,31.83028633]
[1744837175731,82.8,131.64,131.61,24.23173394]
[1744837176026,82.8,131.64,131.6,31.83028633]
[1744837177328,82.8,131.64,131.62,7.59762953]
[1744837177708,82.8,131.64,131.56,25.1053]
[1744837177709,24.65821865,131.63,131.56,7.8453]
[1744837178027,24.23173394,131.62,131.57,24.23173394]
[1744837178417,82.8,131.61,131.57,24.23173394]
[1744837179019,82.8,131.61,131.57,31.83225077]
[1744837180621,82.8,131.61,131.57,7.60051683]
[1744837180918,107.03173394,131.61,131.57,7.60051683]
[1744837181230,24.23173394,131.58,131.53,31.83434762]
[1744837181420,82.8,131.57,131.53,31.83434762]
[1744837182535,82.8,131.57,131.54,24.23173394]
[1744837183124,82.8,131.57,131.55,15.52636241]
[1744837183530,82.8,131.61,131.56,23.12745696]
[1744837183713,82.8,131.6,131.57,15.52636241]
[1744837184134,82.8,131.6,131.56,7.60109455]
[1744837184317,82.8,131.6,131.56,23.12745696]
[1744837186040,98.32636241,131.6,131.56,23.12745696]
[1744837186239,98.32636241,131.6,131.56,7.60109455]
[1744837186540,98.32636241,131.6,131.56,23.12745696]
[1744837186715,82.8,131.6,131.56,23.12745696]
[1744837190841,82.8,131.6,131.56,42.13019335]
[1744837191039,115.56636241,131.62,131.57,15.52636241]
[1744837191620,82.8,131.61,131.57,15.52636241]
[1744837193430,82.8,131.61,131.58,7.5999392]
[1744837196146,52.97376427,131.66,131.6,15.52636241]
[1744837196147,82.8,131.64,131.6,15.52636241]
[1744837198040,82.8,131.64,131.61,7.59820682]
[1744837198245,82.8,131.64,131.61,23.12456923]
[1744837198426,82.8,131.64,131.62,15.52636241]
[1744837199254,82.8,131.64,131.63,15.52636241]
[1744837199438,82.8,131.66,131.63,15.52636241]
[1744837200157,82.8,131.66,131.63,23.12297891]
[1744837200847,15.52636241,131.65,131.61,23.12456923]
[1744837201734,82.8,131.64,131.61,7.59820682]
[1744837201937,15.52636241,131.62,131.55,26.0]
[1744837202263,15.52636241,131.61,131.57,15.52636241]
[1744837202449,15.52636241,131.62,131.58,23.12630161]
[1744837202651,82.8,131.63,131.59,15.52636241]
[1744837202850,82.8,131.63,131.6,15.52636241]
[1744837203654,82.8,131.63,131.59,15.52636241]
[1744837203955,82.8,131.63,131.6,15.52636241]
[1744837204152,24.83592267,131.65,131.6,15.52636241]
[1744837204153,82.863,131.68,131.62,15.52636241]
[1744837204341,82.863,131.68,131.65,15.52636241]
[1744837204651,0.063,131.68,131.65,7.5957431]
[1744837204854,0.063,131.68,131.67,15.52636241]
[1744837206440,0.063,131.68,131.67,23.12110684]
[1744837207155,0.063,131.68,131.67,31.80024037]
[1744837208559,75.45667872,131.72,131.67,31.80024037]
[1744837208765,75.45667872,131.72,131.69,31.79905253]
[1744837208939,75.45667872,131.72,131.7,24.20549594]
[1744837209258,0.063,131.73,131.7,24.20549594]
[1744837210855,0.063,131.73,131.71,7.59243793]
[1744837211067,0.063,131.73,131.7,31.79826936]
[1744837211237,24.26849594,131.73,131.69,24.20549594]
[1744837211442,24.20549594,131.72,131.68,24.20549594]
[1744837211643,24.26849594,131.73,131.69,24.20549594]
[1744837213165,0.063,131.73,131.69,31.79878811]
[1744837213945,0.063,131.73,131.71,24.20549594]
[1744837214547,0.063,131.73,131.72,31.79735746]
[1744837214780,0.063,131.74,131.72,63.7657534]
[1744837215076,0.063,131.74,131.73,48.41099188]
[1744837215243,0.063,131.74,131.73,24.20549594]
[1744837216648,0.063,131.75,131.73,31.79678114]
[1744837216849,0.063,131.75,131.74,48.41099188]
[1744837217043,0.063,131.77,131.74,48.41099188]
[1744837217248,0.063,131.77,131.76,24.20549594]
[1744837218364,0.063,131.79,131.76,80.20549594]
[1744837218577,0.063,131.79,131.78,24.20549594]
[1744837218867,0.063,131.79,131.78,42.8551448]
[1744837218868,1e-08,131.79,131.78,42.8551448]
[1744837219080,0.063,131.81,131.8,26.0]
[1744837219251,0.063,131.82,131.8,26.0]
[1744837219252,0.063,131.82,131.8,74.41099188]
[1744837219450,0.063,131.82,131.81,48.41099188]
[1744837219867,0.063,131.84,131.81,48.41099188]
[1744837220078,0.063,131.84,131.83,24.20549594]
[1744837220279,0.063,131.85,131.81,24.20549594]
[1744837220567,0.063,131.85,131.84,31.79044739]
[1744837220775,0.063,131.85,131.84,7.58495145]
[1744837221088,24.26849594,131.85,131.8,7.58725341]
[1744837221377,24.26849594,131.85,131.8,31.79274935]
[1744837221679,24.20549594,131.83,131.79,7.58763374]
[1744837222279,30.44149594,131.85,131.8,24.20549594]
[1744837222462,6.236,131.85,131.81,24.20549594]
[1744837222660,6.236,131.85,131.82,24.20549594]
[1744837222953,0.063,131.85,131.82,24.20549594]
[1744837223364,0.063,131.85,131.78,30.58900966]
[1744837223365,0.063,131.85,131.84,24.20549594]
[1744837224472,24.26849594,131.85,131.79,11.61799737]
[1744837224679,24.20549594,131.82,131.79,19.20576372]
[1744837224874,24.20549594,131.82,131.79,7.58776635]
[1744837225080,0.063,131.85,131.81,48.41099188]
[1744837225253,0.063,131.85,131.84,24.20549594]
[1744837226274,31.78775845,131.89,131.84,24.20549594]
[1744837226475,75.45667872,131.88,131.84,24.20549594]